[Event "7th Paul Keres Memorial Festival 2026 Classic A"]
[Site "ESTONIA Resort Hotel & Spa conference center, EE"]
[Date "2026.08.01"]
[Round "9"]
[White "Maltsevskaya, Aleksandra"]
[Black "Fecker, Noah"]
[Result "1-0"]
[Board "8"]
[TimeControl "5400+30"]
[WhiteFideId "24174041"]
[BlackFideId "1334263"]
[WhiteElo "2360"]
[BlackElo "2371"]
[WhiteTitle "IM"]
[BlackTitle "FM"]
[WhiteClock "0:10:13"]
[BlackClock "0:02:22"]
[Variant "Standard"]
[EndDate "2026.08.01"]
[EndTime "10:43:21"]

1. e4 {[%clk 1:30:57]}  c6 {[%clk 1:30:50]} 2. d4 {[%clk 1:31:18]}  d5 {[%clk 1:31:13]} 3. e5 {[%clk 1:31:42]}  Bf5 {[%clk 1:31:29]}
4. Nd2 {[%clk 1:32:01]}  e6 {[%clk 1:31:49]} 5. g4 {[%clk 1:32:19]}  Bg6 {[%clk 1:31:29]} 6. Ne2 {[%clk 1:32:39]}  c5 {[%clk 1:17:04]}
7. h4 {[%clk 1:32:46]}  h6 {[%clk 1:12:25]} 8. h5 {[%clk 1:33:09]}  Bh7 {[%clk 1:12:50]} 9. c3 {[%clk 1:33:31]}  Ne7 {[%clk 1:07:25]}
10. Bg2 {[%clk 1:30:52]}  Nd7 {[%clk 1:04:46]} 11. a3 {[%clk 1:22:13]}  Rc8 {[%clk 0:57:44]} 12. f4 {[%clk 1:09:25]}  Nc6 {[%clk 0:43:22]}
13. Nf3 {[%clk 1:08:05]}  c4 {[%clk 0:34:42]} 14. f5 {[%clk 0:53:06]}  exf5 {[%clk 0:29:45]} 15. g5 {[%clk 0:53:28]}  Be7 {[%clk 0:24:54]}
16. gxh6 {[%clk 0:48:17]}  g5 {[%clk 0:24:50]} 17. Nh2 {[%clk 0:34:50]}  Nf8 {[%clk 0:20:16]} 18. O-O {[%clk 0:35:09]}  Ne6 {[%clk 0:19:52]}
19. b3 {[%clk 0:28:57]}  Na5 {[%clk 0:18:20]} 20. bxc4 {[%clk 0:29:17]}  Rxc4 {[%clk 0:18:35]} 21. Bd2 {[%clk 0:22:23]}  O-O {[%clk 0:16:51]}
22. Ng3 {[%clk 0:21:06]}  f4 {[%clk 0:15:34]} 23. Nh1 {[%clk 0:21:30]}  f5 {[%clk 0:09:30]} 24. exf6 {[%clk 0:21:40]}  Bxf6 {[%clk 0:09:50]}
25. Nf2 {[%clk 0:21:24]}  Rc6 {[%clk 0:08:34]} 26. Nhg4 {[%clk 0:20:02]}  Nc7 {[%clk 0:07:36]} 27. Re1 {[%clk 0:09:01]}  Nc4 {[%clk 0:07:41]}
28. Bc1 {[%clk 0:09:05]}  Rb6 {[%clk 0:06:09]} 29. a4 {[%clk 0:08:28]}  Re8 {[%clk 0:05:24]} 30. Ra2 {[%clk 0:08:12]}  Rxe1+ {[%clk 0:04:23]}
31. Qxe1 {[%clk 0:08:37]}  Re6 {[%clk 0:04:26]} 32. Re2 {[%clk 0:08:58]}  Kf7 {[%clk 0:04:16]} 33. Rxe6 {[%clk 0:08:29]}  Nxe6 {[%clk 0:04:44]}
34. Nxf6 {[%clk 0:08:52]}  Kxf6 {[%clk 0:05:08]} 35. Ng4+ {[%clk 0:09:18]}  Ke7 {[%clk 0:04:13]} 36. Ne5 {[%clk 0:09:40]}  Be4 {[%clk 0:02:00]}
37. Nxc4 {[%clk 0:09:48]}  Bxg2 {[%clk 0:02:22]} 38. Ba3+ {[%clk 0:10:13]} 1-0

[Event "7th Paul Keres Memorial Festival 2026 Classic A"]
[Site "ESTONIA Resort Hotel & Spa conference center, EE"]
[Date "2026.08.01"]
[Round "9"]
[White "Krivonosov, Oleg"]
[Black "Grave, Jacob Templen"]
[Result "1/2-1/2"]
[Board "9"]
[TimeControl "5400+30"]
[WhiteFideId "11600349"]
[BlackFideId "1542656"]
[WhiteElo "2290"]
[BlackElo "2392"]
[WhiteTitle "IM"]
[BlackTitle "FM"]
[WhiteClock "1:24:20"]
[BlackClock "0:30:24"]
[Variant "Standard"]
[EndDate "2026.08.01"]
[EndTime "08:46:44"]

1. Nf3 {[%clk 1:30:50]}  Nf6 {[%clk 1:30:36]} 2. c4 {[%clk 1:30:50]}  e6 {[%clk 1:30:36]} 3. g3 {[%clk 1:31:38]}  d5 {[%clk 1:30:21]}
4. d4 {[%clk 1:31:59]}  Bd6 {[%clk 1:30:07]} 5. Bg2 {[%clk 1:32:19]}  h6 {[%clk 1:28:37]} 6. O-O {[%clk 1:32:30]}  O-O {[%clk 1:29:01]}
7. Nc3 {[%clk 1:32:47]}  Nc6 {[%clk 1:29:01]} 8. b3 {[%clk 1:33:05]}  dxc4 {[%clk 1:25:17]} 9. bxc4 {[%clk 1:33:22]}  e5 {[%clk 1:25:44]}
10. Bb2 {[%clk 1:33:37]}  Re8 {[%clk 1:19:49]} 11. c5 {[%clk 1:33:32]}  exd4 {[%clk 1:16:47]} 12. Nxd4 {[%clk 1:33:13]}  Bxc5 {[%clk 1:04:49]}
13. Nxc6 {[%clk 1:33:19]}  bxc6 {[%clk 1:04:55]} 14. Bxc6 {[%clk 1:33:35]}  Bd7 {[%clk 0:55:11]} 15. Bxd7 {[%clk 1:33:55]}  Qxd7 {[%clk 0:50:46]}
16. Qxd7 {[%clk 1:27:06]}  Nxd7 {[%clk 0:51:11]} 17. Rac1 {[%clk 1:26:48]}  Rab8 {[%clk 0:50:34]} 18. Rc2 {[%clk 1:26:48]}  Bd6 {[%clk 0:46:43]}
19. Rd1 {[%clk 1:25:51]}  Nf6 {[%clk 0:40:39]} 20. Nd5 {[%clk 1:24:20]}  Nxd5 {[%clk 0:38:43]} 21. Rxd5 {[%clk 1:24:20]}  Re4 {[%clk 0:30:24]} 1/2-1/2

[Event "7th Paul Keres Memorial Festival 2026 Classic A"]
[Site "ESTONIA Resort Hotel & Spa conference center, EE"]
[Date "2026.08.01"]
[Round "9"]
[White "Haitin, Ilja"]
[Black "Zhao, Yunqing"]
[Result "1/2-1/2"]
[Board "10"]
[TimeControl "5400+30"]
[WhiteFideId "4501764"]
[BlackFideId "8626260"]
[WhiteElo "2273"]
[BlackElo "2169"]
[WhiteTitle "FM"]
[BlackTitle "WIM"]
[WhiteClock "0:03:10"]
[BlackClock "0:03:51"]
[Variant "Standard"]
[EndDate "2026.08.01"]
[EndTime "11:39:56"]

1. e4 {[%clk 1:23:18]}  c5 {[%clk 1:30:56]} 2. d4 {[%clk 1:23:45]}  cxd4 {[%clk 1:30:59]} 3. Qxd4 {[%clk 1:24:10]}  Nc6 {[%clk 1:30:56]}
4. Qd3 {[%clk 1:24:32]}  Nf6 {[%clk 1:28:01]} 5. Nc3 {[%clk 1:24:56]}  e6 {[%clk 1:25:08]} 6. Bf4 {[%clk 1:24:17]}  a6 {[%clk 1:17:32]}
7. O-O-O {[%clk 1:18:23]}  Qa5 {[%clk 1:10:31]} 8. Bd6 {[%clk 0:46:06]}  Nb4 {[%clk 0:52:57]} 9. Qc4 {[%clk 0:45:04]}  Bxd6 {[%clk 0:52:04]}
10. Rxd6 {[%clk 0:45:26]}  b5 {[%clk 0:51:12]} 11. Qb3 {[%clk 0:44:20]}  Bb7 {[%clk 0:49:59]} 12. Qa3 {[%clk 0:38:39]}  Qxa3 {[%clk 0:43:15]}
13. bxa3 {[%clk 0:39:07]}  Rc8 {[%clk 0:40:57]} 14. axb4 {[%clk 0:35:48]}  Rxc3 {[%clk 0:41:05]} 15. f3 {[%clk 0:34:35]}  Ke7 {[%clk 0:39:43]}
16. Rd2 {[%clk 0:32:19]}  e5 {[%clk 0:36:51]} 17. Kb2 {[%clk 0:30:46]}  Rhc8 {[%clk 0:36:38]} 18. Bd3 {[%clk 0:27:03]}  R3c7 {[%clk 0:30:32]}
19. Ne2 {[%clk 0:23:39]}  d5 {[%clk 0:28:22]} 20. exd5 {[%clk 0:22:51]}  Nxd5 {[%clk 0:28:17]} 21. a3 {[%clk 0:23:02]}  g6 {[%clk 0:22:47]}
22. Re1 {[%clk 0:22:43]}  f5 {[%clk 0:14:53]} 23. Nc1 {[%clk 0:17:52]}  Kf6 {[%clk 0:14:15]} 24. Nb3 {[%clk 0:18:01]}  Nb6 {[%clk 0:10:22]}
25. Nc5 {[%clk 0:11:59]}  Nd7 {[%clk 0:10:24]} 26. Nxb7 {[%clk 0:10:17]}  Rxb7 {[%clk 0:10:50]} 27. a4 {[%clk 0:06:29]}  Nb6 {[%clk 0:04:36]}
28. axb5 {[%clk 0:05:26]}  Na4+ {[%clk 0:04:19]} 29. Kc1 {[%clk 0:02:34]}  axb5 {[%clk 0:04:35]} 30. Bf1 {[%clk 0:02:54]}  Nc3 {[%clk 0:02:39]}
31. Rd6+ {[%clk 0:03:05]}  Kg5 {[%clk 0:01:27]} 32. Rxe5 {[%clk 0:01:47]}  Rbc7 {[%clk 0:01:47]} 33. Rc5 {[%clk 0:00:36]}  Rxc5 {[%clk 0:01:31]}
34. bxc5 {[%clk 0:01:04]}  Rxc5 {[%clk 0:01:56]} 35. Rd4 {[%clk 0:00:48]}  f4 {[%clk 0:00:39]} 36. Bd3 {[%clk 0:00:46]}  Nd5 {[%clk 0:00:39]}
37. Re4 {[%clk 0:00:44]}  Kf6 {[%clk 0:00:40]} 38. Kd2 {[%clk 0:00:48]}  g5 {[%clk 0:00:41]} 39. Re8 {[%clk 0:01:07]}  Ne3 {[%clk 0:00:38]}
40. g3 {[%clk 0:01:07]}  Nc4+ {[%clk 0:00:33]} 41. Ke2 {[%clk 0:01:18]}  Nd6 {[%clk 0:00:40]} 42. Rh8 {[%clk 0:01:24]}  Nf7 {[%clk 0:00:36]}
43. Rxh7 {[%clk 0:01:28]}  b4 {[%clk 0:00:33]} 44. gxf4 {[%clk 0:01:31]}  gxf4 {[%clk 0:00:58]} 45. Rh4 {[%clk 0:01:51]}  Ke5 {[%clk 0:00:35]}
46. Rh5+ {[%clk 0:02:03]}  Kd4 {[%clk 0:00:53]} 47. Rxc5 {[%clk 0:02:21]}  Kxc5 {[%clk 0:01:19]} 48. h4 {[%clk 0:02:28]}  Kd4 {[%clk 0:01:13]}
49. Kd2 {[%clk 0:02:34]}  Ne5 {[%clk 0:01:03]} 50. Be4 {[%clk 0:02:06]}  Nf7 {[%clk 0:01:05]} 51. h5 {[%clk 0:01:52]}  Nh6 {[%clk 0:00:57]}
52. Bc6 {[%clk 0:01:22]}  Nf7 {[%clk 0:00:51]} 53. Ba4 {[%clk 0:01:12]}  Nh6 {[%clk 0:00:42]} 54. Bb3 {[%clk 0:01:08]}  Nf5 {[%clk 0:01:05]}
55. Bg8 {[%clk 0:00:53]}  Nh6 {[%clk 0:01:17]} 56. Bb3 {[%clk 0:00:38]}  Nf5 {[%clk 0:01:42]} 57. Ba4 {[%clk 0:01:00]}  Nh6 {[%clk 0:02:06]}
58. Ke2 {[%clk 0:01:15]}  Nf5 {[%clk 0:01:48]} 59. Kf2 {[%clk 0:01:17]}  Ke5 {[%clk 0:01:51]} 60. Bc6 {[%clk 0:01:01]}  Nh6 {[%clk 0:01:12]}
61. Be4 {[%clk 0:01:09]}  Nf7 {[%clk 0:01:15]} 62. Bg6 {[%clk 0:01:03]}  Nh6 {[%clk 0:01:39]} 63. Kg2 {[%clk 0:01:02]}  Kf6 {[%clk 0:01:57]}
64. Be8 {[%clk 0:00:59]}  Nf5 {[%clk 0:01:26]} 65. Bg6 {[%clk 0:01:01]}  Nh6 {[%clk 0:00:59]} 66. Kf2 {[%clk 0:00:57]}  Ke5 {[%clk 0:01:21]}
67. Ke2 {[%clk 0:01:03]}  Kd4 {[%clk 0:01:46]} 68. Bh7 {[%clk 0:00:55]}  Nf7 {[%clk 0:02:00]} 69. Bg8 {[%clk 0:00:59]}  Nh6 {[%clk 0:02:22]}
70. Be6 {[%clk 0:01:08]}  Ke5 {[%clk 0:02:18]} 71. Bh3 {[%clk 0:01:17]}  Kd4 {[%clk 0:02:38]} 72. Kd2 {[%clk 0:01:37]}  Nf7 {[%clk 0:01:59]}
73. Be6 {[%clk 0:01:01]}  Nh6 {[%clk 0:02:19]} 74. Kc1 {[%clk 0:01:02]}  Ke3 {[%clk 0:01:19]} 75. Bd5 {[%clk 0:00:41]}  Kd4 {[%clk 0:01:39]}
76. Be6 {[%clk 0:00:42]}  Ke3 {[%clk 0:02:01]} 77. Kb2 {[%clk 0:00:58]}  Kxf3 {[%clk 0:01:27]} 78. Kb3 {[%clk 0:01:24]}  Kg3 {[%clk 0:01:08]}
79. Kxb4 {[%clk 0:01:32]}  f3 {[%clk 0:01:30]} 80. Bd5 {[%clk 0:00:40]}  Kg4 {[%clk 0:00:35]} 81. Bxf3 {[%clk 0:00:36]}  Kxf3 {[%clk 0:01:00]}
82. c4 {[%clk 0:01:03]}  Kg4 {[%clk 0:01:16]} 83. c5 {[%clk 0:01:21]}  Kxh5 {[%clk 0:01:34]} 84. c6 {[%clk 0:01:47]}  Nf5 {[%clk 0:01:55]}
85. Kc5 {[%clk 0:02:01]}  Kg6 {[%clk 0:02:11]} 86. c7 {[%clk 0:02:20]}  Ne7 {[%clk 0:02:38]} 87. Kd6 {[%clk 0:02:34]}  Kf6 {[%clk 0:02:58]}
88. Kd7 {[%clk 0:03:01]}  Kf7 {[%clk 0:03:24]} 89. c8=Q {[%clk 0:03:10]}  Nxc8 {[%clk 0:03:51]} 1/2-1/2

[Event "7th Paul Keres Memorial Festival 2026 Rapid"]
[Site "ESTONIA Resort Hotel & Spa conference center, EE"]
[Date "2026.08.02"]
[Round "1"]
[White "Gailums, Makss"]
[Black "Shirov, Alexei"]
[Result "0-1"]
[Board "1"]
[TimeControl "12+3"]
[WhiteFideId "11637951"]
[BlackFideId "2209390"]
[WhiteElo "1813"]
[BlackElo "2616"]
[BlackTitle "GM"]
[WhiteClock "0:00:07"]
[BlackClock "0:05:51"]
[Variant "Standard"]
[EndDate "2026.08.02"]
[EndTime "07:53:35"]

1. d4 {[%clk 0:09:54]}  d5 {[%clk 0:11:55]} 2. Bf4 {[%clk 0:09:47]}  c5 {[%clk 0:11:51]} 3. e3 {[%clk 0:09:45]}  Nc6 {[%clk 0:11:26]}
4. c3 {[%clk 0:09:34]}  Nf6 {[%clk 0:11:09]} 5. Nf3 {[%clk 0:09:17]}  Qb6 {[%clk 0:11:09]} 6. Qc1 {[%clk 0:08:44]}  Bf5 {[%clk 0:09:52]}
7. Be2 {[%clk 0:07:52]}  e6 {[%clk 0:09:38]} 8. O-O {[%clk 0:07:48]}  Rc8 {[%clk 0:09:07]} 9. Nbd2 {[%clk 0:06:05]}  h6 {[%clk 0:08:16]}
10. h3 {[%clk 0:01:55]}  Be7 {[%clk 0:08:15]} 11. Be5 {[%clk 0:01:11]}  O-O {[%clk 0:07:53]} 12. Nb3 {[%clk 0:00:21]}  c4 {[%clk 0:06:52]}
13. Nbd2 {[%clk 0:00:21]}  Nd7 {[%clk 0:06:46]} 14. Bg3 {[%clk 0:00:09]}  Qa5 {[%clk 0:06:53]} 15. Ne5 {[%clk 0:00:04]}  Ndxe5 {[%clk 0:06:42]}
16. dxe5 {[%clk 0:00:06]}  b5 {[%clk 0:06:44]} 17. Nf3 {[%clk 0:00:08]}  b4 {[%clk 0:06:37]} 18. Nd4 {[%clk 0:00:10]}  Nxd4 {[%clk 0:06:35]}
19. exd4 {[%clk 0:00:12]}  Rb8 {[%clk 0:05:54]} 20. Qd2 {[%clk 0:00:06]}  bxc3 {[%clk 0:05:50]} 21. bxc3 {[%clk 0:00:07]}  Qa3 {[%clk 0:05:51]} 0-1

[Event "7th Paul Keres Memorial Festival 2026 Rapid"]
[Site "ESTONIA Resort Hotel & Spa conference center, EE"]
[Date "2026.08.02"]
[Round "1"]
[White "Lagarde, Maxime"]
[Black "Pohla, Mihkel Johannes"]
[Result "1-0"]
[Board "2"]
[TimeControl "12+3"]
[WhiteFideId "662399"]
[BlackFideId "4508432"]
[WhiteElo "2599"]
[BlackElo "1860"]
[WhiteTitle "GM"]
[WhiteClock "0:08:27"]
[BlackClock "0:07:50"]
[Variant "Standard"]
[EndDate "2026.08.02"]
[EndTime "07:41:28"]

1. Nf3 {[%clk 0:12:01]}  c5 {[%clk 0:12:04]} 2. e4 {[%clk 0:11:58]}  Nc6 {[%clk 0:12:05]} 3. Bc4 {[%clk 0:11:55]}  d6 {[%clk 0:12:06]}
4. d4 {[%clk 0:11:50]}  cxd4 {[%clk 0:12:05]} 5. Nxd4 {[%clk 0:11:51]}  Nf6 {[%clk 0:12:06]} 6. Nc3 {[%clk 0:11:52]}  g6 {[%clk 0:12:06]}
7. Nxc6 {[%clk 0:11:48]}  bxc6 {[%clk 0:12:07]} 8. e5 {[%clk 0:11:49]}  Nd7 {[%clk 0:11:44]} 9. exd6 {[%clk 0:09:29]}  exd6 {[%clk 0:11:43]}
10. O-O {[%clk 0:09:14]}  Bg7 {[%clk 0:10:32]} 11. Re1+ {[%clk 0:08:50]}  Kf8 {[%clk 0:10:33]} 12. Qxd6+ {[%clk 0:08:50]}  Kg8 {[%clk 0:10:19]}
13. Bg5 {[%clk 0:08:31]}  Qxg5 {[%clk 0:07:59]} 14. Bxf7+ {[%clk 0:08:30]}  Kxf7 {[%clk 0:07:56]} 15. Qe6+ {[%clk 0:08:31]}  Kf8 {[%clk 0:07:50]}
16. Qe8# {[%clk 0:08:27]} 1-0

[Event "7th Paul Keres Memorial Festival 2026 Rapid"]
[Site "ESTONIA Resort Hotel & Spa conference center, EE"]
[Date "2026.08.02"]
[Round "1"]
[White "Rupais,Gustavs"]
[Black "Fridman, Daniel"]
[Result "0-1"]
[Board "3"]
[TimeControl "12+3"]
[WhiteFideId "11614854"]
[BlackFideId "11600454"]
[WhiteElo "1828"]
[BlackElo "2555"]
[BlackTitle "GM"]
[WhiteClock "0:00:08"]
[BlackClock "0:00:09"]
[Variant "Standard"]
[EndDate "2026.08.02"]
[EndTime "08:02:44"]

1. Nf3 {[%clk 0:12:03]}  d5 {[%clk 0:09:30]} 2. c4 {[%clk 0:12:04]}  e6 {[%clk 0:09:28]} 3. d4 {[%clk 0:12:03]}  Nf6 {[%clk 0:09:28]}
4. g3 {[%clk 0:12:03]}  Bb4+ {[%clk 0:09:25]} 5. Bd2 {[%clk 0:12:04]}  a5 {[%clk 0:09:26]} 6. Bg2 {[%clk 0:11:40]}  O-O {[%clk 0:09:25]}
7. O-O {[%clk 0:11:40]}  dxc4 {[%clk 0:09:25]} 8. Qc2 {[%clk 0:11:39]}  b5 {[%clk 0:09:22]} 9. Ne5 {[%clk 0:11:23]}  Ra6 {[%clk 0:09:12]}
10. Rd1 {[%clk 0:10:59]}  Rd6 {[%clk 0:08:13]} 11. e3 {[%clk 0:10:51]}  c6 {[%clk 0:06:02]} 12. b3 {[%clk 0:10:41]}  cxb3 {[%clk 0:05:54]}
13. axb3 {[%clk 0:10:42]}  Nd5 {[%clk 0:05:08]} 14. Nd3 {[%clk 0:08:04]}  Na6 {[%clk 0:04:40]} 15. e4 {[%clk 0:07:38]}  Ne7 {[%clk 0:04:39]}
16. Nxb4 {[%clk 0:07:13]}  Nxb4 {[%clk 0:04:31]} 17. Bxb4 {[%clk 0:07:12]}  axb4 {[%clk 0:04:31]} 18. Ra7 {[%clk 0:07:10]}  c5 {[%clk 0:03:35]}
19. Qxc5 {[%clk 0:06:50]}  Nc6 {[%clk 0:03:36]} 20. Ra2 {[%clk 0:06:36]}  e5 {[%clk 0:01:55]} 21. d5 {[%clk 0:06:01]}  Nd4 {[%clk 0:01:55]}
22. Qxb4 {[%clk 0:05:55]}  Qb6 {[%clk 0:01:14]} 23. h3 {[%clk 0:05:39]}  f5 {[%clk 0:01:13]} 24. Nc3 {[%clk 0:04:28]}  f4 {[%clk 0:01:09]}
25. Rd3 {[%clk 0:03:19]}  Rdf6 {[%clk 0:01:02]} 26. d6 {[%clk 0:02:33]}  Qxd6 {[%clk 0:00:15]} 27. Qxd6 {[%clk 0:02:34]}  Rxd6 {[%clk 0:00:17]}
28. Nd5 {[%clk 0:02:36]}  Bb7 {[%clk 0:00:13]} 29. Ra7 {[%clk 0:01:58]}  Bxd5 {[%clk 0:00:13]} 30. exd5 {[%clk 0:02:00]}  f3 {[%clk 0:00:14]}
31. Rc3 {[%clk 0:02:02]}  fxg2 {[%clk 0:00:13]} 32. Rcc7 {[%clk 0:02:03]}  Rg6 {[%clk 0:00:07]} 33. d6 {[%clk 0:02:05]}  Rd8 {[%clk 0:00:06]}
34. d7 {[%clk 0:02:03]}  Kf7 {[%clk 0:00:08]} 35. Rc8 {[%clk 0:01:52]}  Ke7 {[%clk 0:00:09]} 36. Raa8 {[%clk 0:01:53]}  Ne6 {[%clk 0:00:06]}
37. Kxg2 {[%clk 0:01:49]}  Rf6 {[%clk 0:00:08]} 38. Rab8 {[%clk 0:01:48]}  Rff8 {[%clk 0:00:09]} 39. Rxb5 {[%clk 0:01:46]}  Kf6 {[%clk 0:00:09]}
40. Rbb8 {[%clk 0:01:34]}  Ke7 {[%clk 0:00:10]} 41. Rb5 {[%clk 0:01:24]}  e4 {[%clk 0:00:10]} 42. Re5 {[%clk 0:01:23]}  Rxc8 {[%clk 0:00:12]}
43. dxc8=Q {[%clk 0:01:20]}  Rxc8 {[%clk 0:00:14]} 44. Rxe4 {[%clk 0:01:22]}  Rc2 {[%clk 0:00:15]} 45. Kf1 {[%clk 0:01:11]}  Rb2 {[%clk 0:00:15]}
46. f4 {[%clk 0:01:08]}  Rxb3 {[%clk 0:00:16]} 47. f5 {[%clk 0:01:09]}  Rxg3 {[%clk 0:00:14]} 48. Rxe6+ {[%clk 0:01:06]}  Kf7 {[%clk 0:00:16]}
49. h4 {[%clk 0:00:49]}  Rg4 {[%clk 0:00:09]} 50. Kf2 {[%clk 0:00:20]}  Rxh4 {[%clk 0:00:11]} 51. Kg3 {[%clk 0:00:22]}  Ra4 {[%clk 0:00:08]}
52. Rb6 {[%clk 0:00:23]}  Ra7 {[%clk 0:00:10]} 53. Kg4 {[%clk 0:00:24]}  Rc7 {[%clk 0:00:12]} 54. Kg5 {[%clk 0:00:23]}  h6+ {[%clk 0:00:09]}
55. Kg4 {[%clk 0:00:19]}  Rc4+ {[%clk 0:00:11]} 56. Kf3 {[%clk 0:00:16]}  Ra4 {[%clk 0:00:10]} 57. Kg3 {[%clk 0:00:16]}  Ke7 {[%clk 0:00:06]}
58. Kf3 {[%clk 0:00:15]}  Rd4 {[%clk 0:00:08]} 59. Kg3 {[%clk 0:00:17]}  Rd6 {[%clk 0:00:10]} 60. Rb5 {[%clk 0:00:11]}  Kf6 {[%clk 0:00:12]}
61. Kg4 {[%clk 0:00:10]}  Rd4+ {[%clk 0:00:14]} 62. Kh5 {[%clk 0:00:08]}  Rf4 {[%clk 0:00:12]} 63. Rb6+ {[%clk 0:00:08]}  Kxf5 {[%clk 0:00:09]}
64. Rb5+ {[%clk 0:12:03]} 0-1

[Event "7th Paul Keres Memorial Festival 2026 Rapid"]
[Site "ESTONIA Resort Hotel & Spa conference center, EE"]
[Date "2026.08.02"]
[Round "1"]
[White "Laurusas, Tomas"]
[Black "Voropaiev, Vladyslav"]
[Result "1-0"]
[Board "4"]
[TimeControl "12+3"]
[WhiteFideId "12803731"]
[BlackFideId "34175091"]
[WhiteElo "2462"]
[BlackElo "1673"]
[WhiteTitle "GM"]
[WhiteClock "0:11:26"]
[BlackClock "0:04:20"]
[Variant "Standard"]
[EndDate "2026.08.02"]
[EndTime "07:51:49"]

1. c4 {[%clk 0:12:03]}  e5 {[%clk 0:11:44]} 2. Nc3 {[%clk 0:12:04]}  Nf6 {[%clk 0:11:43]} 3. Nf3 {[%clk 0:12:05]}  Nc6 {[%clk 0:11:31]}
4. d4 {[%clk 0:12:07]}  exd4 {[%clk 0:11:29]} 5. Nxd4 {[%clk 0:12:08]}  Nxd4 {[%clk 0:10:43]} 6. Qxd4 {[%clk 0:12:09]}  c6 {[%clk 0:10:21]}
7. g3 {[%clk 0:12:08]}  Bb4 {[%clk 0:09:49]} 8. Bg2 {[%clk 0:12:05]}  O-O {[%clk 0:09:05]} 9. O-O {[%clk 0:12:05]}  Qa5 {[%clk 0:08:36]}
10. Bd2 {[%clk 0:12:05]}  Bc5 {[%clk 0:08:22]} 11. Qg4 {[%clk 0:12:05]}  Qc7 {[%clk 0:07:04]} 12. Qh4 {[%clk 0:11:56]}  Re8 {[%clk 0:06:04]}
13. Rad1 {[%clk 0:11:52]}  Qa5 {[%clk 0:05:11]} 14. Bf4 {[%clk 0:11:26]}  Ba3 {[%clk 0:04:20]} 15. Ra1 {[%clk 0:09:51]}  Qb4 {[%clk 0:00:41]} 1-0

[Event "7th Paul Keres Memorial Festival 2026 Rapid"]
[Site "ESTONIA Resort Hotel & Spa conference center, EE"]
[Date "2026.08.02"]
[Round "1"]
[White "Vassiljev, Saveli"]
[Black "Keinanen, Toivo"]
[Result "0-1"]
[Board "5"]
[TimeControl "12+3"]
[WhiteFideId "4530705"]
[BlackFideId "509825"]
[WhiteElo "1797"]
[BlackElo "2585"]
[BlackTitle "IM"]
[WhiteClock "0:04:38"]
[BlackClock "0:08:17"]
[Variant "Standard"]
[EndDate "2026.08.02"]
[EndTime "07:53:16"]

1. d4 {[%clk 0:12:05]}  d5 {[%clk 0:11:59]} 2. c4 {[%clk 0:12:05]}  e6 {[%clk 0:12:01]} 3. Nf3 {[%clk 0:12:07]}  c6 {[%clk 0:11:58]}
4. g3 {[%clk 0:12:08]}  dxc4 {[%clk 0:11:55]} 5. a4 {[%clk 0:12:08]}  c5 {[%clk 0:11:20]} 6. Bg2 {[%clk 0:12:07]}  Nc6 {[%clk 0:11:22]}
7. e3 {[%clk 0:11:31]}  cxd4 {[%clk 0:11:09]} 8. exd4 {[%clk 0:11:32]}  Nf6 {[%clk 0:10:59]} 9. Na3 {[%clk 0:11:31]}  Bxa3 {[%clk 0:10:28]}
10. Rxa3 {[%clk 0:11:33]}  O-O {[%clk 0:10:29]} 11. O-O {[%clk 0:11:34]}  Nd5 {[%clk 0:10:07]} 12. Qc2 {[%clk 0:11:21]}  b6 {[%clk 0:10:03]}
13. Qxc4 {[%clk 0:11:04]}  Bb7 {[%clk 0:10:05]} 14. Bg5 {[%clk 0:10:35]}  Qd7 {[%clk 0:10:05]} 15. Ne5 {[%clk 0:09:55]}  Qd6 {[%clk 0:10:04]}
16. Bxd5 {[%clk 0:09:30]}  exd5 {[%clk 0:09:58]} 17. Qd3 {[%clk 0:09:24]}  Nxe5 {[%clk 0:09:16]} 18. dxe5 {[%clk 0:09:25]}  Qxe5 {[%clk 0:09:18]}
19. f4 {[%clk 0:09:20]}  Qd6 {[%clk 0:08:57]} 20. Qd4 {[%clk 0:08:51]}  f6 {[%clk 0:08:54]} 21. Bh4 {[%clk 0:08:52]}  Rfe8 {[%clk 0:08:49]}
22. Rc3 {[%clk 0:08:15]}  Re4 {[%clk 0:08:40]} 23. Qd3 {[%clk 0:07:29]}  d4 {[%clk 0:08:37]} 24. Rc2 {[%clk 0:07:08]}  Rae8 {[%clk 0:08:31]}
25. Rd2 {[%clk 0:06:25]}  Qd5 {[%clk 0:08:20]} 26. Rf3 {[%clk 0:05:47]}  Re1+ {[%clk 0:08:12]} 27. Kf2 {[%clk 0:05:48]}  Qxf3+ {[%clk 0:08:13]}
28. Qxf3 {[%clk 0:05:50]}  Bxf3 {[%clk 0:08:15]} 29. Kxf3 {[%clk 0:05:51]}  R1e3+ {[%clk 0:08:13]} 30. Kf2 {[%clk 0:05:47]}  d3 {[%clk 0:08:15]}
31. g4 {[%clk 0:05:29]}  Re2+ {[%clk 0:08:16]} 32. Rxe2 {[%clk 0:05:31]}  Rxe2+ {[%clk 0:08:16]} 33. Kf1 {[%clk 0:05:03]}  Rxb2 {[%clk 0:08:16]}
34. Bg3 {[%clk 0:04:38]}  Rb1+ {[%clk 0:08:17]} 0-1

[Event "7th Paul Keres Memorial Festival 2026 Rapid"]
[Site "ESTONIA Resort Hotel & Spa conference center, EE"]
[Date "2026.08.02"]
[Round "1"]
[White "Kazakouski, Valery"]
[Black "Reinholm, Karl Kristjan"]
[Result "1-0"]
[Board "6"]
[TimeControl "12+3"]
[WhiteFideId "13507443"]
[BlackFideId "4516028"]
[WhiteElo "2528"]
[BlackElo "1843"]
[WhiteTitle "GM"]
[WhiteClock "0:10:06"]
[BlackClock "0:04:26"]
[Variant "Standard"]
[EndDate "2026.08.02"]
[EndTime "07:44:23"]

1. d4 {[%clk 0:12:04]}  Nf6 {[%clk 0:12:04]} 2. c4 {[%clk 0:12:05]}  e6 {[%clk 0:12:04]} 3. Nc3 {[%clk 0:12:06]}  Bb4 {[%clk 0:12:03]}
4. f3 {[%clk 0:11:59]}  O-O {[%clk 0:11:40]} 5. e4 {[%clk 0:11:59]}  d6 {[%clk 0:11:29]} 6. Nge2 {[%clk 0:11:56]}  e5 {[%clk 0:11:19]}
7. a3 {[%clk 0:11:54]}  Bxc3+ {[%clk 0:11:07]} 8. Nxc3 {[%clk 0:11:54]}  a5 {[%clk 0:10:37]} 9. Be3 {[%clk 0:11:50]}  Nbd7 {[%clk 0:10:10]}
10. Be2 {[%clk 0:11:47]}  b6 {[%clk 0:09:48]} 11. O-O {[%clk 0:11:42]}  Ba6 {[%clk 0:09:27]} 12. d5 {[%clk 0:11:33]}  Qe7 {[%clk 0:09:14]}
13. b4 {[%clk 0:11:31]}  axb4 {[%clk 0:08:25]} 14. axb4 {[%clk 0:11:31]}  Nh5 {[%clk 0:08:18]} 15. Qd2 {[%clk 0:11:27]}  g6 {[%clk 0:07:55]}
16. Ra3 {[%clk 0:11:13]}  Bb7 {[%clk 0:07:30]} 17. Rfa1 {[%clk 0:11:12]}  c6 {[%clk 0:06:29]} 18. dxc6 {[%clk 0:10:33]}  Rxa3 {[%clk 0:06:18]}
19. Rxa3 {[%clk 0:10:33]}  Bxc6 {[%clk 0:06:18]} 20. Ra7 {[%clk 0:10:28]}  Ng7 {[%clk 0:05:35]} 21. Bxb6 {[%clk 0:10:22]}  Ra8 {[%clk 0:04:59]}
22. Rxa8+ {[%clk 0:10:13]}  Bxa8 {[%clk 0:04:59]} 23. Be3 {[%clk 0:10:09]}  f5 {[%clk 0:04:42]} 24. c5 {[%clk 0:10:06]}  dxc5 {[%clk 0:04:26]}
25. Qa2+ {[%clk 0:10:06]} 1-0